[Event "*** Titled Tuesday Blitz"]
[Site "Chess.com"]
[Date "2020.04.21"]
[Round "9"]
[White "Pavalamalli"]
[Black "Orest_Vovk"]
[Result "0-1"]
[WhiteElo "2226"]
[BlackElo "2452"]
[TimeControl "180+1"]
[EndTime "11:48:52 PDT"]
[Termination "Orest_Vovk won by resignation"]

1. d4 {[%clk 0:02:59.6]} 1... f5 {[%clk 0:02:57.4]} 2. Nc3 {[%clk 0:02:54.9]}
2... Nf6 {[%clk 0:02:57.1]} 3. f3 {[%clk 0:02:52.4]} 3... e6 {[%clk 0:02:57.4]}
4. Bg5 {[%clk 0:02:50.6]} 4... d5 {[%clk 0:02:56.7]} 5. Qd2 {[%clk 0:02:50]}
5... Be7 {[%clk 0:02:52]} 6. h4 {[%clk 0:02:49]} 6... O-O {[%clk 0:02:50.9]} 7.
O-O-O {[%clk 0:02:48.9]} 7... c5 {[%clk 0:02:45.6]} 8. dxc5 {[%clk 0:02:44.9]}
8... Nc6 {[%clk 0:02:43.3]} 9. e4 {[%clk 0:02:39.1]} 9... fxe4 {[%clk
0:02:42.6]} 10. fxe4 {[%clk 0:02:38.6]} 10... dxe4 {[%clk 0:02:41.1]} 11. Qe2
{[%clk 0:02:23.6]} 11... Qa5 {[%clk 0:02:40.1]} 12. a3 {[%clk 0:02:19.9]} 12...
Qxc5 {[%clk 0:02:37.2]} 13. Nxe4 {[%clk 0:02:12.8]} 13... Nxe4 {[%clk
0:02:29.3]} 14. Qxe4 {[%clk 0:02:10]} 14... Bxg5+ {[%clk 0:02:22.3]} 15. hxg5
{[%clk 0:02:09.7]} 15... Qxg5+ {[%clk 0:02:23.2]} 16. Kb1 {[%clk 0:02:09.3]}
16... Qf5 {[%clk 0:02:16.2]} 17. Qh4 {[%clk 0:02:07.3]} 17... Ne5 {[%clk
0:02:09.9]} 18. Nf3 {[%clk 0:02:05]} 18... Nxf3 {[%clk 0:02:04.7]} 19. gxf3
{[%clk 0:02:04.8]} 19... h6 {[%clk 0:02:03.2]} 20. Bd3 {[%clk 0:02:02.6]} 20...
Qf4 {[%clk 0:02:02.4]} 21. Qh5 {[%clk 0:02:00.1]} 21... e5 {[%clk 0:02:02.5]}
22. Rdg1 {[%clk 0:01:57.4]} 22... Bf5 {[%clk 0:01:57.5]} 23. Bxf5 {[%clk
0:01:54.3]} 23... Rxf5 {[%clk 0:01:57.5]} 24. Qg6 {[%clk 0:01:54]} 24... Rg5
{[%clk 0:01:45]} 25. Qe6+ {[%clk 0:01:48.6]} 25... Qf7 {[%clk 0:01:41.8]} 26.
Qd6 {[%clk 0:01:33.2]} 26... Rxg1+ {[%clk 0:01:39.2]} 27. Rxg1 {[%clk
0:01:33.3]} 27... Kh8 {[%clk 0:01:22.4]} 28. Qxe5 {[%clk 0:01:31.9]} 28... Rf8
{[%clk 0:01:20.9]} 29. f4 {[%clk 0:01:30.9]} 29... Qf6 {[%clk 0:01:19.9]} 30.
Qc7 {[%clk 0:01:25.8]} 30... Rf7 {[%clk 0:01:20]} 31. Qc8+ {[%clk 0:01:25.3]}
31... Kh7 {[%clk 0:01:20]} 32. Rg4 {[%clk 0:01:17.6]} 32... Qf5 {[%clk
0:01:17.4]} 33. Qxf5+ {[%clk 0:01:12]} 33... Rxf5 {[%clk 0:01:17.4]} 34. Kc1
{[%clk 0:01:11.7]} 34... h5 {[%clk 0:01:14.3]} 35. Rh4 {[%clk 0:01:11.3]} 35...
Kh6 {[%clk 0:01:14.8]} 36. Kd2 {[%clk 0:01:11.1]} 36... g5 {[%clk 0:01:14.8]}
37. fxg5+ {[%clk 0:01:10.7]} 37... Kxg5 {[%clk 0:01:15.7]} 38. Rh2 {[%clk
0:01:09.8]} 38... h4 {[%clk 0:01:15.8]} 39. Ke3 {[%clk 0:01:08]} 39... Rf7
{[%clk 0:01:08.2]} 40. Rg2+ {[%clk 0:01:07.2]} 40... Kh5 {[%clk 0:01:08]} 41.
Rf2 {[%clk 0:01:06.8]} 41... Rxf2 {[%clk 0:01:05.3]} 42. Kxf2 {[%clk 0:01:07.1]}
42... Kg4 {[%clk 0:01:05.8]} 43. Kg2 {[%clk 0:01:07.3]} 43... Kf4 {[%clk
0:01:05.6]} 44. Kh3 {[%clk 0:01:07.4]} 44... Ke3 {[%clk 0:01:05.9]} 45. Kxh4
{[%clk 0:01:06]} 45... Kd2 {[%clk 0:01:05.2]} 46. Kg5 {[%clk 0:01:03.6]} 46...
Kxc2 {[%clk 0:01:05.3]} 47. Kf6 {[%clk 0:01:03.6]} 47... Kxb2 {[%clk 0:01:05.3]}
48. a4 {[%clk 0:01:03.8]} 48... Kb3 {[%clk 0:01:03.5]} 49. a5 {[%clk 0:01:04.1]}
49... Kb4 {[%clk 0:01:03.3]} 50. Ke5 {[%clk 0:01:03.6]} 50... Kxa5 {[%clk
0:01:03.1]} 0-1

[Event "*** Titled Tuesday Blitz"]
[Site "Chess.com"]
[Date "2020.04.21"]
[Round "9"]
[White "Mizner"]
[Black "MFBerna"]
[Result "1-0"]
[WhiteElo "2512"]
[BlackElo "2372"]
[TimeControl "180+1"]
[EndTime "11:48:53 PDT"]
[Termination "Mizner won by resignation"]

1. e4 {[%clk 0:03:00.9]} 1... c6 {[%clk 0:02:59.5]} 2. d4 {[%clk 0:03:00.3]}
2... d5 {[%clk 0:03:00.4]} 3. Nd2 {[%clk 0:03:00.3]} 3... dxe4 {[%clk
0:02:57.9]} 4. Nxe4 {[%clk 0:03:01.2]} 4... Nf6 {[%clk 0:02:58.8]} 5. Nxf6+
{[%clk 0:03:01.3]} 5... exf6 {[%clk 0:02:59.7]} 6. c3 {[%clk 0:03:01.6]} 6...
Bd6 {[%clk 0:02:59.6]} 7. Bd3 {[%clk 0:03:01.2]} 7... O-O {[%clk 0:02:59.7]} 8.
Ne2 {[%clk 0:03:01.4]} 8... Re8 {[%clk 0:02:59.5]} 9. O-O {[%clk 0:03:01.2]}
9... Qc7 {[%clk 0:02:59.7]} 10. Ng3 {[%clk 0:02:59.9]} 10... Nd7 {[%clk
0:02:59]} 11. Nf5 {[%clk 0:02:58.6]} 11... Nf8 {[%clk 0:02:59]} 12. Nxd6 {[%clk
0:02:45.1]} 12... Qxd6 {[%clk 0:02:58.8]} 13. Qf3 {[%clk 0:02:40]} 13... Ng6
{[%clk 0:02:55.1]} 14. Qg3 {[%clk 0:02:32]} 14... Qxg3 {[%clk 0:02:52.6]} 15.
hxg3 {[%clk 0:02:32.9]} 15... Bg4 {[%clk 0:02:44]} 16. f3 {[%clk 0:02:21.2]}
16... Bd7 {[%clk 0:02:43.2]} 17. g4 {[%clk 0:02:17.7]} 17... Re7 {[%clk
0:02:35.4]} 18. Bd2 {[%clk 0:02:16]} 18... Rae8 {[%clk 0:02:35.3]} 19. Rae1
{[%clk 0:02:14.4]} 19... Rxe1 {[%clk 0:02:31.2]} 20. Rxe1 {[%clk 0:02:15.3]}
20... Rxe1+ {[%clk 0:02:30.6]} 21. Bxe1 {[%clk 0:02:16.2]} 21... Nf4 {[%clk
0:02:30]} 22. Be4 {[%clk 0:02:05.4]} 22... Be6 {[%clk 0:02:17]} 23. b3 {[%clk
0:01:58.3]} 23... Bd5 {[%clk 0:01:43.9]} 24. Bc2 {[%clk 0:01:46.7]} 24... Kf8
{[%clk 0:01:42.6]} 25. Bd2 {[%clk 0:01:43]} 25... Ne6 {[%clk 0:01:28]} 26. Bxh7
{[%clk 0:01:20.1]} 26... b5 {[%clk 0:01:18.3]} 27. Bd3 {[%clk 0:01:13.5]} 27...
Nc7 {[%clk 0:01:08.6]} 28. Kf2 {[%clk 0:01:12.1]} 28... Ke7 {[%clk 0:01:07.4]}
29. c4 {[%clk 0:01:04.3]} 29... Be6 {[%clk 0:01:06.2]} 30. Bb4+ {[%clk
0:01:02.2]} 30... Kd7 {[%clk 0:01:05]} 31. Bf8 {[%clk 0:01:01.8]} 31... bxc4
{[%clk 0:01:01.4]} 32. bxc4 {[%clk 0:01:00.9]} 32... g6 {[%clk 0:00:58.9]} 33.
Ke3 {[%clk 0:00:59.1]} 33... Na6 {[%clk 0:00:52.7]} 34. d5 {[%clk 0:00:45.1]}
34... cxd5 {[%clk 0:00:45.4]} 35. cxd5 {[%clk 0:00:46]} 35... Bxd5 {[%clk
0:00:46.3]} 36. Bxa6 {[%clk 0:00:45.7]} 36... Bxa2 {[%clk 0:00:47.2]} 37. Bc5
{[%clk 0:00:41.7]} 37... Be6 {[%clk 0:00:43.4]} 38. Bxa7 {[%clk 0:00:41.1]} 1-0

[Event "*** Titled Tuesday Blitz"]
[Site "Chess.com"]
[Date "2020.04.21"]
[Round "9"]
[White "vovachesss"]
[Black "jaskol95"]
[Result "1-0"]
[WhiteElo "2628"]
[BlackElo "2407"]
[TimeControl "180+1"]
[EndTime "11:48:56 PDT"]
[Termination "vovachesss won by checkmate"]

1. d4 {[%clk 0:03:00.9]} 1... Nf6 {[%clk 0:02:59.9]} 2. Nc3 {[%clk 0:02:59.5]}
2... d5 {[%clk 0:02:56.2]} 3. Bf4 {[%clk 0:02:59.2]} 3... c6 {[%clk 0:02:47.1]}
4. e3 {[%clk 0:02:59]} 4... e6 {[%clk 0:02:45.5]} 5. Nf3 {[%clk 0:02:58.5]} 5...
Nbd7 {[%clk 0:02:42.7]} 6. Ne5 {[%clk 0:02:58.4]} 6... Nxe5 {[%clk 0:02:42.4]}
7. Bxe5 {[%clk 0:02:58.2]} 7... Bd6 {[%clk 0:02:42.1]} 8. f4 {[%clk 0:02:54]}
8... Ne4 {[%clk 0:02:39.3]} 9. Nxe4 {[%clk 0:02:44.2]} 9... dxe4 {[%clk
0:02:20.8]} 10. Bxg7 {[%clk 0:02:37.6]} 10... Rg8 {[%clk 0:02:20.7]} 11. Be5
{[%clk 0:02:38.3]} 11... Bxe5 {[%clk 0:02:15.9]} 12. dxe5 {[%clk 0:02:34.9]}
12... Qh4+ {[%clk 0:02:15.4]} 13. g3 {[%clk 0:02:34.5]} 13... Rxg3 {[%clk
0:02:10]} 14. hxg3 {[%clk 0:02:35.4]} 14... Qxh1 {[%clk 0:02:08.4]} 15. Qg4
{[%clk 0:02:35.4]} 15... Qg1 {[%clk 0:01:14.1]} 16. O-O-O {[%clk 0:02:02.6]}
16... Qxe3+ {[%clk 0:01:02.5]} 17. Kb1 {[%clk 0:02:02.4]} 17... Qb6 {[%clk
0:01:02.9]} 18. Bc4 {[%clk 0:01:38.8]} 18... Kf8 {[%clk 0:00:42.5]} 19. Qh5
{[%clk 0:00:56.9]} 19... e3 {[%clk 0:00:30.8]} 20. Qxh7 {[%clk 0:00:43.3]} 20...
e2 {[%clk 0:00:26.9]} 21. Bxe2 {[%clk 0:00:38.5]} 21... Ke7 {[%clk 0:00:15.1]}
22. Qh4+ {[%clk 0:00:33.8]} 22... Ke8 {[%clk 0:00:15]} 23. Qh8+ {[%clk
0:00:34.1]} 23... Ke7 {[%clk 0:00:15.4]} 24. Qf6+ {[%clk 0:00:34.8]} 24... Ke8
{[%clk 0:00:16]} 25. Bh5 {[%clk 0:00:30.6]} 25... Qc7 {[%clk 0:00:14.9]} 26.
Rd8+ {[%clk 0:00:30.5]} 26... Qxd8 {[%clk 0:00:14.8]} 27. Qxf7# {[%clk
0:00:30.2]} 1-0

[Event "*** Titled Tuesday Blitz"]
[Site "Chess.com"]
[Date "2020.04.21"]
[Round "9"]
[White "bazar-wokzal"]
[Black "RaunakSadhwani2005"]
[Result "0-1"]
[WhiteElo "2528"]
[BlackElo "2757"]
[TimeControl "180+1"]
[EndTime "11:48:58 PDT"]
[Termination "RaunakSadhwani2005 won on time"]

1. e4 {[%clk 0:02:56.2]} 1... c5 {[%clk 0:03:00.1]} 2. c3 {[%clk 0:02:55.6]}
2... Qa5 {[%clk 0:02:58.7]} 3. Nf3 {[%clk 0:02:54.5]} 3... Nc6 {[%clk 0:02:58]}
4. Bc4 {[%clk 0:02:50.4]} 4... d6 {[%clk 0:02:55.5]} 5. O-O {[%clk 0:02:49.3]}
5... Nf6 {[%clk 0:02:53.1]} 6. Re1 {[%clk 0:02:47.5]} 6... Bg4 {[%clk 0:02:52]}
7. Na3 {[%clk 0:02:31.7]} 7... e6 {[%clk 0:02:45.3]} 8. h3 {[%clk 0:02:28.5]}
8... Bh5 {[%clk 0:02:43.6]} 9. Bb5 {[%clk 0:02:13.9]} 9... Be7 {[%clk
0:02:37.1]} 10. Bxc6+ {[%clk 0:02:09.6]} 10... bxc6 {[%clk 0:02:38]} 11. Nc4
{[%clk 0:02:09.7]} 11... Qa6 {[%clk 0:02:34.8]} 12. d3 {[%clk 0:02:04.4]} 12...
Nd7 {[%clk 0:02:33.9]} 13. Bf4 {[%clk 0:01:59.4]} 13... e5 {[%clk 0:02:27.5]}
14. Bh2 {[%clk 0:01:59.2]} 14... O-O {[%clk 0:02:27.3]} 15. Ne3 {[%clk
0:01:56.4]} 15... Rfe8 {[%clk 0:02:27]} 16. Nf5 {[%clk 0:01:55.1]} 16... Bf8
{[%clk 0:02:27.3]} 17. Ng3 {[%clk 0:01:54.2]} 17... Bg6 {[%clk 0:02:25.5]} 18.
Nh4 {[%clk 0:01:53.3]} 18... Rab8 {[%clk 0:02:25.6]} 19. Qd2 {[%clk 0:01:46.2]}
19... Nf6 {[%clk 0:02:22.1]} 20. Nhf5 {[%clk 0:01:45.2]} 20... d5 {[%clk
0:02:19]} 21. f3 {[%clk 0:01:43.2]} 21... Red8 {[%clk 0:02:14.7]} 22. Qe2 {[%clk
0:01:36.1]} 22... c4 {[%clk 0:02:08.8]} 23. dxc4 {[%clk 0:01:35]} 23... dxe4
{[%clk 0:02:09]} 24. fxe4 {[%clk 0:01:32]} 24... Qb6+ {[%clk 0:02:09.3]} 25. Kh1
{[%clk 0:01:28.1]} 25... Qxb2 {[%clk 0:02:09.7]} 26. Qe3 {[%clk 0:01:22.3]}
26... Qb6 {[%clk 0:02:08.4]} 27. Nf1 {[%clk 0:01:09.7]} 27... Qxe3 {[%clk
0:02:04.3]} 28. Rxe3 {[%clk 0:01:05.9]} 28... Nd7 {[%clk 0:02:05.2]} 29. Bg1
{[%clk 0:01:00.8]} 29... f6 {[%clk 0:02:03.8]} 30. Ree1 {[%clk 0:00:52.7]} 30...
Nc5 {[%clk 0:02:03.6]} 31. N1g3 {[%clk 0:00:47.9]} 31... Bf7 {[%clk 0:02:00.8]}
32. Ne3 {[%clk 0:00:44.1]} 32... Rd3 {[%clk 0:01:57.3]} 33. Rab1 {[%clk
0:00:39.1]} 33... Rbd8 {[%clk 0:01:53.4]} 34. Rec1 {[%clk 0:00:35.5]} 34... h5
{[%clk 0:01:48]} 35. h4 {[%clk 0:00:31.1]} 35... Bg6 {[%clk 0:01:42.9]} 36. Nef5
{[%clk 0:00:22.7]} 36... Nxe4 {[%clk 0:01:40.3]} 37. Nxe4 {[%clk 0:00:15.8]}
37... Bxf5 {[%clk 0:01:40.3]} 38. Nc5 {[%clk 0:00:09.1]} 38... Rd2 {[%clk
0:01:36.8]} 39. Rb7 {[%clk 0:00:06.5]} 39... Re2 {[%clk 0:01:32]} 40. Nb3 {[%clk
0:00:01.1]} 40... Be4 {[%clk 0:01:31.1]} 0-1

[Event "*** Titled Tuesday Blitz"]
[Site "Chess.com"]
[Date "2020.04.21"]
[Round "9"]
[White "Camels1981"]
[Black "ahappypawn"]
[Result "1-0"]
[WhiteElo "2113"]
[BlackElo "2359"]
[TimeControl "180+1"]
[EndTime "11:48:58 PDT"]
[Termination "Camels1981 won on time"]

1. e4 {[%clk 0:03:00.9]} 1... g6 {[%clk 0:02:59.4]} 2. d4 {[%clk 0:02:58]} 2...
Bg7 {[%clk 0:02:58.7]} 3. Nc3 {[%clk 0:02:58.1]} 3... d6 {[%clk 0:02:59.2]} 4.
g3 {[%clk 0:02:58]} 4... Nf6 {[%clk 0:02:57.9]} 5. Bg2 {[%clk 0:02:57.9]} 5...
O-O {[%clk 0:02:57]} 6. Nf3 {[%clk 0:02:55.8]} 6... e5 {[%clk 0:02:55.6]} 7. O-O
{[%clk 0:02:55.3]} 7... Nc6 {[%clk 0:02:51.4]} 8. h3 {[%clk 0:02:54.8]} 8... a6
{[%clk 0:02:48.9]} 9. Bg5 {[%clk 0:02:53.8]} 9... h6 {[%clk 0:02:45.1]} 10. Be3
{[%clk 0:02:53.6]} 10... b5 {[%clk 0:02:42.3]} 11. Qd2 {[%clk 0:02:53.1]} 11...
Kh7 {[%clk 0:02:41.1]} 12. Rad1 {[%clk 0:02:51.2]} 12... b4 {[%clk 0:02:32.2]}
13. Nd5 {[%clk 0:02:33.3]} 13... Nxe4 {[%clk 0:02:27.7]} 14. Qe1 {[%clk
0:02:32.8]} 14... f5 {[%clk 0:01:54.4]} 15. dxe5 {[%clk 0:02:28.7]} 15... Nxe5
{[%clk 0:01:53.2]} 16. Nxe5 {[%clk 0:02:28.1]} 16... Bxe5 {[%clk 0:01:49.5]} 17.
Nxb4 {[%clk 0:02:24.5]} 17... Bxb2 {[%clk 0:01:39.9]} 18. Nd5 {[%clk 0:02:10.2]}
18... Be6 {[%clk 0:01:21.7]} 19. Qa5 {[%clk 0:02:06.4]} 19... c6 {[%clk
0:01:13.6]} 20. Bb6 {[%clk 0:02:05.2]} 20... Qd7 {[%clk 0:00:44.4]} 21. Nf4
{[%clk 0:02:01.5]} 21... Bf7 {[%clk 0:00:33.4]} 22. Bd4 {[%clk 0:01:42.6]} 22...
Bxd4 {[%clk 0:00:29.4]} 23. Rxd4 {[%clk 0:01:41.3]} 23... Rfb8 {[%clk
0:00:25.7]} 24. Rfd1 {[%clk 0:01:39.4]} 24... d5 {[%clk 0:00:20.3]} 25. c4
{[%clk 0:01:35.6]} 25... Rb2 {[%clk 0:00:10.5]} 26. cxd5 {[%clk 0:01:33.7]}
26... Nxf2 {[%clk 0:00:08.9]} 27. dxc6 {[%clk 0:01:31.9]} 27... Qa7 {[%clk
0:00:08.4]} 28. Rd7 {[%clk 0:01:19]} 28... Nxh3+ {[%clk 0:00:04.7]} 29. Kh2
{[%clk 0:01:18.9]} 29... Qf2 {[%clk 0:00:04.2]} 30. Rxf7+ {[%clk 0:01:17]} 30...
Kg8 {[%clk 0:00:04.5]} 31. Rb7 {[%clk 0:00:58.3]} 31... Nxf4 {[%clk 0:00:03.4]}
32. Rd8+ {[%clk 0:00:56.4]} 1-0

[Event "*** Titled Tuesday Blitz"]
[Site "Chess.com"]
[Date "2020.04.21"]
[Round "9"]
[White "KrolPawel92OnTwitch"]
[Black "tsvet2005"]
[Result "1-0"]
[WhiteElo "2681"]
[BlackElo "2513"]
[TimeControl "180+1"]
[EndTime "11:49:01 PDT"]
[Termination "KrolPawel92OnTwitch won by resignation"]

1. e4 {[%clk 0:03:00.9]} 1... c5 {[%clk 0:02:51.5]} 2. Nf3 {[%clk 0:03:01.1]}
2... d6 {[%clk 0:02:51.8]} 3. g3 {[%clk 0:03:01.5]} 3... Nf6 {[%clk 0:02:51.5]}
4. c3 {[%clk 0:03:01.3]} 4... Nc6 {[%clk 0:02:50.8]} 5. Qe2 {[%clk 0:03:01.8]}
5... e5 {[%clk 0:02:48.1]} 6. Bg2 {[%clk 0:03:01.9]} 6... Be7 {[%clk 0:02:48.6]}
7. O-O {[%clk 0:03:02]} 7... O-O {[%clk 0:02:49.2]} 8. d3 {[%clk 0:03:02.2]}
8... Nh5 {[%clk 0:02:39.3]} 9. Nbd2 {[%clk 0:02:49.1]} 9... f5 {[%clk
0:02:33.7]} 10. exf5 {[%clk 0:02:45.1]} 10... Bxf5 {[%clk 0:02:34.6]} 11. Re1
{[%clk 0:02:41.8]} 11... Qd7 {[%clk 0:02:17.9]} 12. Nc4 {[%clk 0:02:35.7]} 12...
Rae8 {[%clk 0:02:13.2]} 13. Bd2 {[%clk 0:02:23.5]} 13... Bd8 {[%clk 0:02:08.6]}
14. Ng5 {[%clk 0:02:12.4]} 14... Bg4 {[%clk 0:01:50.4]} 15. Bd5+ {[%clk
0:02:10.8]} 15... Kh8 {[%clk 0:01:49.6]} 16. f3 {[%clk 0:02:08.8]} 16... Bf5
{[%clk 0:01:32.6]} 17. g4 {[%clk 0:02:07.1]} 17... Nf4 {[%clk 0:00:34.7]} 18.
Bxf4 {[%clk 0:02:06.3]} 18... exf4 {[%clk 0:00:34.9]} 19. Qxe8 {[%clk
0:02:06.4]} 19... Rxe8 {[%clk 0:00:19.8]} 20. Rxe8+ {[%clk 0:02:03.8]} 20...
Qxe8 {[%clk 0:00:19.8]} 21. Nf7+ {[%clk 0:02:03.9]} 21... Qxf7 {[%clk
0:00:14.3]} 22. Bxf7 {[%clk 0:02:03.5]} 22... Bxd3 {[%clk 0:00:15.2]} 23. Nxd6
{[%clk 0:02:03.1]} 23... Ne5 {[%clk 0:00:15.3]} 24. Bd5 {[%clk 0:02:01.1]} 24...
Bc7 {[%clk 0:00:05.7]} 25. Nxb7 {[%clk 0:01:55.9]} 25... c4 {[%clk 0:00:04]} 26.
Re1 {[%clk 0:01:53.9]} 26... g6 {[%clk 0:00:03.6]} 27. Kg2 {[%clk 0:01:50.8]}
27... Kg7 {[%clk 0:00:01.9]} 28. b3 {[%clk 0:01:50.6]} 28... Kf6 {[%clk
0:00:02]} 29. Nc5 {[%clk 0:01:43.3]} 29... cxb3 {[%clk 0:00:01.8]} 30. axb3
{[%clk 0:01:40.9]} 30... Bc2 {[%clk 0:00:02.4]} 31. h4 {[%clk 0:01:37.8]} 31...
g5 {[%clk 0:00:02.4]} 32. hxg5+ {[%clk 0:01:37.4]} 32... Kxg5 {[%clk 0:00:02.9]}
33. Ne6+ {[%clk 0:01:36.9]} 33... Kf6 {[%clk 0:00:03.8]} 34. Nxc7 {[%clk
0:01:37]} 34... Nd3 {[%clk 0:00:04.7]} 35. Re6+ {[%clk 0:01:36]} 35... Kg7
{[%clk 0:00:04.6]} 36. Ne8+ {[%clk 0:01:35.1]} 36... Kf8 {[%clk 0:00:04.8]} 37.
Nd6 {[%clk 0:01:34.5]} 37... Nc1 {[%clk 0:00:03.2]} 38. Re8+ {[%clk 0:01:30.5]}
38... Kg7 {[%clk 0:00:03.4]} 39. g5 {[%clk 0:01:30.4]} 39... h5 {[%clk
0:00:03.3]} 40. Re7+ {[%clk 0:01:26.5]} 40... Kf8 {[%clk 0:00:03.1]} 41. Rf7+
{[%clk 0:01:26.3]} 41... Kg8 {[%clk 0:00:03.2]} 42. Ne8 {[%clk 0:01:24.2]} 42...
Nd3 {[%clk 0:00:02.1]} 43. Nf6+ {[%clk 0:01:23.9]} 1-0

[Event "*** Titled Tuesday Blitz"]
[Site "Chess.com"]
[Date "2020.04.21"]
[Round "9"]
[White "kingofkolkata"]
[Black "CroissantNeuf"]
[Result "1-0"]
[WhiteElo "2260"]
[BlackElo "2353"]
[TimeControl "180+1"]
[EndTime "11:49:01 PDT"]
[Termination "kingofkolkata won on time"]

1. d4 {[%clk 0:03:00.9]} 1... Nf6 {[%clk 0:02:59.6]} 2. c4 {[%clk 0:03:01.8]}
2... e6 {[%clk 0:02:59.5]} 3. g3 {[%clk 0:03:01.8]} 3... c5 {[%clk 0:02:57.7]}
4. d5 {[%clk 0:03:01.4]} 4... exd5 {[%clk 0:02:57.5]} 5. cxd5 {[%clk 0:03:02.3]}
5... d6 {[%clk 0:02:58.1]} 6. Nf3 {[%clk 0:03:02.6]} 6... g6 {[%clk 0:02:58.6]}
7. Nc3 {[%clk 0:03:02.8]} 7... Bg7 {[%clk 0:02:59]} 8. Bg2 {[%clk 0:03:03.3]}
8... O-O {[%clk 0:02:59.4]} 9. O-O {[%clk 0:03:03.5]} 9... Re8 {[%clk
0:02:59.9]} 10. Nd2 {[%clk 0:02:58.8]} 10... a6 {[%clk 0:02:53.5]} 11. a4 {[%clk
0:02:58.6]} 11... Nbd7 {[%clk 0:02:52.6]} 12. a5 {[%clk 0:02:55.8]} 12... Rb8
{[%clk 0:02:50.3]} 13. Nc4 {[%clk 0:02:55.8]} 13... Ne5 {[%clk 0:02:49.1]} 14.
Nxe5 {[%clk 0:02:48.1]} 14... Rxe5 {[%clk 0:02:46.9]} 15. Bf4 {[%clk 0:02:47.9]}
15... Re8 {[%clk 0:02:46.4]} 16. e4 {[%clk 0:02:46.3]} 16... b5 {[%clk
0:02:40.9]} 17. axb6 {[%clk 0:02:46.1]} 17... Qxb6 {[%clk 0:02:38.1]} 18. Na4
{[%clk 0:02:45.1]} 18... Qc7 {[%clk 0:02:32.9]} 19. Rc1 {[%clk 0:02:44.5]} 19...
Nxe4 {[%clk 0:02:26.3]} 20. Bxe4 {[%clk 0:02:27.4]} 20... Rxe4 {[%clk
0:02:25.4]} 21. Nxc5 {[%clk 0:02:27.1]} 21... Rxf4 {[%clk 0:01:49.1]} 22. Nxa6
{[%clk 0:01:57.8]} 22... Qb7 {[%clk 0:00:09.1]} 23. Nxb8 {[%clk 0:01:55.3]}
23... Rd4 {[%clk 0:00:09.7]} 24. Qc2 {[%clk 0:01:40.1]} 24... Bh3 {[%clk
0:00:09.8]} 25. Rfe1 {[%clk 0:01:26.7]} 25... Qxb8 {[%clk 0:00:04.1]} 26. Qc6
{[%clk 0:01:18.6]} 26... Qxb2 {[%clk 0:00:02.6]} 27. Qe8+ {[%clk 0:00:54.6]}
27... Bf8 {[%clk 0:00:03.3]} 28. Rc7 {[%clk 0:00:48.3]} 1-0

[Event "*** Titled Tuesday Blitz"]
[Site "Chess.com"]
[Date "2020.04.21"]
[Round "9"]
[White "Kildepiotr"]
[Black "tacticthunder"]
[Result "1-0"]
[WhiteElo "2545"]
[BlackElo "2593"]
[TimeControl "180+1"]
[EndTime "11:49:03 PDT"]
[Termination "Kildepiotr won on time"]

1. Nf3 {[%clk 0:03:00.9]} 1... Nf6 {[%clk 0:02:58.4]} 2. g3 {[%clk 0:03:01]}
2... b5 {[%clk 0:02:49.3]} 3. Bg2 {[%clk 0:03:00.9]} 3... Bb7 {[%clk 0:02:49.1]}
4. O-O {[%clk 0:03:00.6]} 4... e6 {[%clk 0:02:46.3]} 5. d3 {[%clk 0:03:00.3]}
5... c5 {[%clk 0:02:45]} 6. a4 {[%clk 0:02:56.5]} 6... a6 {[%clk 0:02:41.5]} 7.
e4 {[%clk 0:02:56.1]} 7... Be7 {[%clk 0:02:39.1]} 8. e5 {[%clk 0:02:52.7]} 8...
Nd5 {[%clk 0:02:38.2]} 9. axb5 {[%clk 0:02:51.2]} 9... axb5 {[%clk 0:02:38.9]}
10. Rxa8 {[%clk 0:02:52.1]} 10... Bxa8 {[%clk 0:02:39.6]} 11. Nbd2 {[%clk
0:02:45.7]} 11... O-O {[%clk 0:02:36.8]} 12. Ne4 {[%clk 0:02:44.6]} 12... f5
{[%clk 0:02:35]} 13. exf6 {[%clk 0:02:44.3]} 13... Nxf6 {[%clk 0:02:34.5]} 14.
Nfg5 {[%clk 0:02:42.2]} 14... Nxe4 {[%clk 0:02:30.4]} 15. Nxe4 {[%clk
0:02:41.1]} 15... Nc6 {[%clk 0:02:26.5]} 16. Be3 {[%clk 0:02:38]} 16... d6
{[%clk 0:02:08.1]} 17. Qg4 {[%clk 0:02:36.5]} 17... e5 {[%clk 0:02:04.3]} 18.
Nc3 {[%clk 0:02:32.6]} 18... b4 {[%clk 0:01:56.2]} 19. Nd5 {[%clk 0:02:19.3]}
19... Kh8 {[%clk 0:01:54.7]} 20. Be4 {[%clk 0:02:16.3]} 20... g6 {[%clk
0:00:33.5]} 21. Ra1 {[%clk 0:02:02.4]} 21... Bb7 {[%clk 0:00:32.4]} 22. Qh3
{[%clk 0:01:50.4]} 22... Kg8 {[%clk 0:00:30.2]} 23. Qe6+ {[%clk 0:01:43.2]}
23... Rf7 {[%clk 0:00:30.3]} 24. Nxe7+ {[%clk 0:01:19]} 24... Qxe7 {[%clk
0:00:31.2]} 25. Bd5 {[%clk 0:01:18.9]} 25... Qxe6 {[%clk 0:00:26.4]} 26. Bxe6
{[%clk 0:01:18.9]} 26... Kf8 {[%clk 0:00:24.5]} 27. Bxf7 {[%clk 0:01:16.4]}
27... Kxf7 {[%clk 0:00:25.4]} 28. c3 {[%clk 0:01:12.9]} 28... Ke6 {[%clk
0:00:20.7]} 29. f4 {[%clk 0:01:10.9]} 29... exf4 {[%clk 0:00:20.1]} 30. Bxf4
{[%clk 0:01:10.6]} 30... Kd5 {[%clk 0:00:19.5]} 31. Re1 {[%clk 0:01:08.6]} 31...
Ne5 {[%clk 0:00:12.5]} 32. Bxe5 {[%clk 0:01:07.9]} 32... dxe5 {[%clk 0:00:13.4]}
33. Kf2 {[%clk 0:01:07.4]} 33... Ba6 {[%clk 0:00:10.4]} 34. Ke3 {[%clk
0:01:06.4]} 34... Bb5 {[%clk 0:00:09.9]} 35. c4+ {[%clk 0:01:06]} 1-0